bitfinex-derivatives/quotes_ETHF0:USTF0_20250217
["timestamp","ask_amount","ask_price","bid_price","bid_amount"]
[1739781162920,0.5758,2686.9,2686.5,0.749976]
[1739781163218,0.5758,2686.9,2686.5,0.005576]
[1739781163416,0.74439,2686.6,2686.5,0.005576]
[1739781164119,3.21139,2686.6,2686.5,0.005576]
[1739781165725,6.47634996,2686.6,2686.5,0.005576]
[1739781165920,0.74456,2686.0,2685.9,3.2078]
[1739781166724,1.3358,2686.3,2686.0,0.74454]
[1739781166923,0.74449,2686.3,2686.0,4.00949996]
[1739781167125,0.005576,2686.2,2686.1,0.74453]
[1739781167320,0.005576,2686.2,2686.0,4.00949996]
[1739781167721,0.74453,2686.1,2686.0,4.00949996]
[1739781167921,0.005576,2686.2,2686.1,0.74453]
[1739781169729,0.005576,2686.2,2686.1,14.73176877]
[1739781170519,8.5332,2687.1,2686.1,14.73176877]
[1739781170520,6.6725,2687.1,2686.1,13.98723877]
[1739781170733,6.2245,2687.1,2686.6,3.26495996]
[1739781170923,6.2245,2687.1,2686.7,1.86474]
[1739781171232,6.2245,2687.1,2686.7,1.1204]
[1739781171624,0.74434,2686.8,2686.7,1.1204]
[1739781171823,0.74434,2686.8,2686.7,0.5806]
[1739781172025,6.2245,2687.1,2686.6,0.005576]
[1739781172225,6.2245,2687.1,2686.6,0.749966]
[1739781172428,6.2245,2687.1,2686.6,0.005576]
[1739781172629,0.74437,2686.7,2686.6,0.005576]
[1739781176332,3.21137,2686.7,2686.6,0.005576]
[1739781177229,3.7575,2687.1,2686.6,0.005576]
[1739781177429,0.74435,2686.8,2686.6,0.749946]
[1739781177728,0.74434,2686.8,2686.7,0.74435]
[1739781177929,0.74434,2686.8,2686.6,1.342156]
[1739781178131,0.74434,2686.8,2686.6,0.597776]
[1739781178333,0.74432,2686.9,2686.7,0.74437]
[1739781178529,0.74434,2686.8,2686.7,0.74437]
[1739781178730,2.467,2687.0,2686.6,1.173676]
[1739781178936,0.74437,2686.7,2686.6,1.918056]
[1739781179129,2.467,2687.0,2686.6,1.173676]
[1739781179437,3.7575,2687.1,2686.7,0.74435]
[1739781179638,0.74432,2686.9,2686.7,0.74435]
[1739781180337,3.7575,2687.1,2686.7,0.74435]
[1739781180539,0.74437,2686.7,2686.6,1.173676]
[1739781181540,0.74437,2686.7,2686.6,0.005576]
[1739781183030,2.467,2686.9,2686.6,0.005576]
[1739781183534,0.74437,2686.7,2686.6,0.005576]
[1739781184336,0.74437,2686.7,2686.6,0.541476]
[1739781184738,0.74437,2686.7,2686.6,1.285866]
[1739781185135,4.3189,2687.1,2686.6,0.541476]
[1739781185338,4.3189,2687.1,2686.6,1.094876]
[1739781185339,6.7859,2687.1,2686.6,1.094876]
[1739781185641,0.74436,2686.8,2686.7,0.74436]
[1739781185938,6.7859,2687.1,2686.7,0.74435]
[1739781186240,6.7859,2687.1,2686.6,1.094876]
[1739781186542,0.74437,2686.7,2686.6,1.094876]
[1739781187036,0.74437,2686.7,2686.6,0.005576]
[1739781187837,0.005576,2687.2,2686.6,0.005576]
[1739781188030,0.005576,2687.2,2687.1,3.2078]
[1739781188230,0.005576,2687.2,2687.1,3.95206]
[1739781189047,3.4986,2687.8,2687.1,20.2228007]
[1739781189240,0.7441,2687.7,2687.5,3.2078]
[1739781189540,1.32767,2687.8,2687.6,0.5384]
[1739781189942,0.5836,2687.8,2687.6,0.5384]
[1739781190237,2.466,2688.1,2687.7,0.74408]
[1739781190434,0.005576,2688.0,2687.7,3.26495996]
[1739781190635,0.005576,2688.0,2687.9,3.95183]
[1739781190838,6.2139,2688.7,2687.9,3.2078]
[1739781191041,6.2139,2688.7,2688.0,4.00894996]
[1739781191042,0.74388,2688.5,2688.0,4.00894996]
[1739781191245,47.0139,2688.7,2688.0,3.26495996]
[1739781191542,0.74383,2688.7,2688.3,6.47275996]
[1739781191740,0.5401,2688.8,2688.3,3.2078]
[1739781191935,0.74388,2688.5,2688.3,3.2078]
[1739781192139,0.74388,2688.5,2688.3,3.213376]
[1739781192334,0.7439,2688.4,2688.3,3.213376]
[1739781192546,0.7439,2688.4,2688.3,0.005576]
[1739781192944,3.011676,2688.8,2688.3,0.005576]
[1739781193145,0.74383,2688.7,2688.3,0.005576]
[1739781193447,0.545676,2688.8,2688.3,0.005576]
[1739781193652,0.545676,2688.8,2688.3,3.83963596]
[1739781194040,1.289476,2688.8,2688.4,0.7439]
[1739781194446,0.74383,2688.7,2688.3,7.04954596]
[1739781194649,0.545676,2688.8,2688.3,7.04954596]
[1739781194650,0.545676,2688.8,2688.3,6.30563596]
[1739781194852,0.74384,2688.6,2688.3,6.30563596]
[1739781195447,0.545676,2688.8,2688.3,0.574676]
[1739781195747,0.545676,2688.8,2688.3,0.005576]
[1739781195942,0.74389,2688.5,2688.3,0.005576]
[1739781196348,0.545676,2688.8,2688.3,0.005576]
[1739781196750,0.7439,2688.4,2688.3,0.005576]
[1739781197258,2.466,2688.6,2688.3,0.005576]
[1739781197760,0.005576,2688.8,2688.7,0.74381]
[1739781197956,0.005576,2688.8,2688.7,4.00876996]
[1739781199854,0.005576,2688.8,2688.7,3.26495996]
[1739781200259,0.005576,2688.8,2688.7,4.00876996]
[1739781201053,0.005576,2688.8,2688.7,11.71393523]
[1739781201246,0.005576,2688.8,2688.7,14.17893523]
[1739781202156,0.5794,2689.6,2689.2,0.74365]
[1739781202157,0.74358,2689.6,2689.2,0.74365]
[1739781202448,0.74364,2689.4,2689.2,3.26495996]
[1739781202653,3.2078,2689.7,2689.2,4.00862996]
[1739781202856,0.74362,2689.4,2689.3,0.5689]
[1739781203653,0.005576,2689.6,2689.3,0.5689]
[1739781203864,0.005576,2689.6,2689.4,3.2078]
[1739781204052,0.005576,2689.6,2689.4,3.95142]
[1739781204360,0.005576,2689.6,2689.4,3.2078]
[1739781205063,0.005576,2689.6,2689.4,3.95142]
[1739781205565,0.74359,2689.5,2689.4,3.2078]
[1739781205754,0.749156,2689.6,2689.4,3.2078]
[1739781206456,0.74359,2689.5,2689.4,3.2078]
[1739781207259,0.74362,2689.4,2689.3,0.5689]
[1739781207460,0.74366,2689.3,2689.1,5.6718]
[1739781207963,0.74367,2689.2,2689.1,5.6718]
[1739781208657,0.74367,2689.2,2689.1,3.2078]
[1739781209261,1.0902,2689.5,2689.1,3.95149]
[1739781209466,0.74366,2689.3,2689.1,3.95149]
[1739781209963,1.0902,2689.5,2689.1,3.2078]
[1739781210165,0.74368,2689.2,2689.1,3.2078]
[1739781210459,0.74367,2689.3,2689.1,3.2078]
[1739781210656,0.74368,2689.2,2689.1,3.2078]
[1739781210858,1.0902,2689.5,2689.1,3.2078]
[1739781211059,1.0902,2689.5,2689.2,0.74366]
[1739781211255,0.005576,2689.6,2689.2,11.12619003]
[1739781211461,0.005576,2689.6,2689.5,0.74359]
[1739781211964,0.005576,2689.6,2689.5,0.5878]
[1739781212458,0.005576,2689.6,2689.5,1.33139]
[1739781212767,0.005576,2689.6,2689.5,4.59634996]
[1739781213066,0.005576,2689.6,2689.5,12.21004087]
[1739781216359,0.5419,2690.3,2689.5,17.46645087]
[1739781216559,0.5382,2690.5,2690.1,3.2078]
[1739781216867,0.74336,2690.4,2690.1,6.47275996]
[1739781217167,0.5382,2690.5,2690.2,8.5259947]
[1739781217362,0.5382,2690.5,2690.2,7.7826147]
[1739781217558,1.28152,2690.5,2690.2,7.7826147]
[1739781217760,1.28153,2690.5,2690.2,8.5260047]
[1739781218261,1.28153,2690.5,2690.2,7.7826147]
[1739781218262,0.74336,2690.4,2690.2,7.7826147]
[1739781218466,0.5382,2690.5,2690.2,7.7826147]
[1739781218659,0.74332,2690.5,2690.4,3.2078]
[1739781220663,0.005576,2690.6,2690.4,3.2078]
[1739781220961,0.748886,2690.6,2690.4,3.2078]
[1739781221159,0.005576,2690.6,2690.4,3.2078]
[1739781221366,0.748876,2690.6,2690.4,3.2078]
[1739781221761,0.005576,2690.6,2690.5,0.74332]
[1739781222066,0.748866,2690.6,2690.4,7.21608996]
[1739781222256,0.748866,2690.6,2690.4,6.47275996]
[1739781222257,0.74332,2690.5,2690.4,6.47275996]
[1739781222461,0.005576,2690.6,2690.4,6.47275996]
[1739781222662,0.005576,2690.6,2690.5,0.74332]
[1739781222859,0.005576,2690.6,2690.5,8.41407642]
[1739781223058,0.005576,2690.6,2690.5,8.98957642]
[1739781223764,0.005576,2690.6,2690.5,8.24625642]
[1739781223965,0.748866,2690.6,2690.5,8.24625642]
[1739781224264,0.005576,2690.6,2690.5,8.98957642]
[1739781225473,0.74319,2691.0,2690.8,0.74322]
[1739781225664,0.74314,2691.2,2690.9,1.2952]
[1739781225864,0.74315,2691.2,2690.9,1.2952]
[1739781226164,0.74314,2691.2,2690.9,1.2952]
[1739781226366,0.74318,2691.0,2690.9,0.552]
[1739781227272,0.74321,2690.9,2690.8,3.2078]
[1739781227859,1.85781,2691.2,2690.5,4.369]
[1739781228169,0.74329,2690.6,2690.5,3.7935]
[1739781228371,0.74327,2690.7,2690.5,3.7935]
[1739781228573,0.74327,2690.7,2690.6,7.949767]
[1739781228871,0.5889,2690.8,2690.5,3.7935]
[1739781229071,2.403,2691.4,2690.8,0.74323]
[1739781229372,0.74319,2691.0,2690.8,3.2078]
[1739781229571,3.5291,2691.4,2690.8,3.2078]
[1739781229969,0.74321,2690.9,2690.8,3.2078]
[1739781230171,3.5291,2691.4,2690.8,3.95102]
[1739781230571,0.74314,2691.2,2691.1,3.2078]
[1739781230767,1.6714,2691.4,2691.1,3.2078]
[1739781230973,0.74312,2691.2,2691.1,3.2078]
[1739781231772,0.74680741,2691.3,2691.1,3.2078]
[1739781231969,0.00369741,2691.3,2691.1,3.7752]
[1739781232167,0.00369741,2691.3,2691.1,3.2078]
[1739781232168,0.74312,2691.2,2691.1,3.2078]
[1739781232368,0.00369741,2691.3,2691.1,3.2078]
[1739781232574,0.74312,2691.2,2691.1,3.2078]
[1739781234684,0.00369741,2691.3,2691.1,11.09023423]
[1739781234878,0.00369741,2691.3,2691.2,1.32322]
[1739781235077,0.74302,2691.6,2691.3,0.74307]
[1739781235274,0.74302,2691.6,2691.4,3.82535996]
[1739781235576,0.74304,2691.5,2691.4,3.82535996]
[1739781236583,0.74304,2691.5,2691.4,0.5604]
[1739781236785,1.1095,2691.6,2691.1,3.2078]
[1739781236985,0.74312,2691.2,2691.1,3.2078]
[1739781237276,0.74312,2691.2,2691.1,10.98283642]
[1739781238275,0.5461,2691.4,2691.1,10.98283642]
[1739781238474,1.1095,2691.6,2691.1,14.24779638]
[1739781238675,0.74309,2691.4,2691.2,1.1608]
[1739781238875,1.1095,2691.6,2691.2,1.1608]
[1739781239478,0.74309,2691.3,2691.2,1.1608]
[1739781240480,0.74312,2691.2,2691.1,3.2078]
[1739781240881,0.74312,2691.2,2691.1,10.94331255]
[1739781241777,0.74312,2691.2,2691.1,3.2078]
[1739781244679,5.42907,2691.6,2691.1,3.2078]
[1739781244876,0.74312,2691.2,2691.1,3.2078]
[1739781248087,3.20512,2691.2,2691.1,3.2078]
[1739781249287,0.74329,2690.6,2690.5,3.2078]
[1739781249482,0.74329,2690.6,2690.1,3.27053596]
[1739781249683,0.7434,2690.2,2690.1,3.213376]
[1739781249885,0.7434,2690.2,2690.1,0.005576]
[1739781250784,0.74339,2690.3,2690.1,3.213376]
[1739781250981,1.1733,2690.5,2690.1,3.213376]
[1739781251182,2.462,2691.1,2690.4,3.2078]
[1739781251377,0.7432,2691.0,2690.9,3.2078]
[1739781252283,0.74318,2691.0,2690.9,3.2078]
[1739781253087,0.5927,2691.1,2690.5,0.5883]
[1739781253288,0.74329,2690.6,2690.5,0.5883]
[1739781253587,0.74321,2690.9,2690.8,7.62934063]
[1739781253789,0.74326,2690.7,2690.6,3.2078]
[1739781253983,2.462,2690.9,2690.2,4.3123]
[1739781254183,0.74337,2690.3,2690.2,3.2078]
[1739781258395,3.2078,2691.1,2690.2,14.38276431]
[1739781258595,2.462,2691.0,2690.5,6.47275996]
[1739781258794,0.74326,2690.7,2690.6,1.1121]
[1739781260789,0.74337,2690.3,2690.2,6.47275996]
[1739781260994,0.74337,2690.3,2690.2,3.2078]
[1739781261194,0.7434,2690.2,2690.1,1.137176]
[1739781261592,0.7434,2690.2,2690.1,0.579076]
[1739781261792,0.7434,2690.2,2690.1,0.005576]
[1739781263000,1.1194,2690.6,2690.1,0.005576]
[1739781263202,1.1194,2690.6,2690.5,3.2078]
[1739781263402,1.31639,2690.6,2690.5,3.2078]
[1739781263803,3.0146,2690.9,2690.5,3.2078]
[1739781264303,3.0146,2690.9,2690.8,3.2078]
[1739781264304,0.74322,2690.9,2690.8,3.2078]
[1739781268005,1.1221,2691.2,2690.8,11.14595434]
[1739781268302,0.74318,2691.0,2690.9,1.1652]
[1739781269003,2.462,2691.3,2690.9,1.1652]
[1739781269200,0.74316,2691.1,2690.9,1.1652]
[1739781269400,0.74314,2691.2,2690.9,1.9084]
[1739781269703,0.74316,2691.1,2690.9,1.9084]
[1739781269906,0.74318,2691.0,2690.9,1.1652]
[1739781270403,0.74321,2690.9,2690.8,3.2078]
[1739781270610,1.33791,2690.9,2690.8,3.2078]
[1739781271611,3.79991,2690.9,2690.8,3.2078]
[1739781272317,0.74321,2690.9,2690.8,3.2078]
[1739781272813,1.29991,2690.9,2690.8,3.2078]
[1739781275719,0.74332,2690.5,2690.4,3.7849]
[1739781276109,0.74332,2690.5,2690.4,11.65051756]
[1739781276925,0.7433,2690.6,2690.4,12.39385756]
[1739781277127,0.7433,2690.6,2690.4,11.65051756]
[1739781277320,0.5567,2690.9,2690.4,11.65051756]
[1739781277517,0.74326,2690.8,2690.5,4.00825996]
[1739781277827,0.74327,2690.7,2690.5,4.00825996]
[1739781278317,0.5567,2690.9,2690.5,3.26495996]
[1739781278318,0.74329,2690.6,2690.5,3.26495996]
[1739781278924,0.5567,2690.9,2690.5,4.00826996]
[1739781279121,0.74327,2690.7,2690.5,4.00826996]
[1739781279816,0.74329,2690.6,2690.5,3.26495996]
[1739781280926,0.74327,2690.7,2690.5,4.00826996]
[1739781281131,0.74329,2690.6,2690.5,3.26495996]
[1739781282027,0.74329,2690.6,2690.5,4.00826996]
[1739781282327,0.74327,2690.7,2690.5,4.00826996]
[1739781282628,0.74323,2690.9,2690.7,0.74326]
[1739781282926,0.74323,2690.9,2690.8,3.77]
[1739781283424,0.74321,2690.9,2690.8,3.77]
[1739781283722,0.5552,2691.1,2690.8,3.77]
[1739781284026,0.74321,2690.9,2690.8,3.77]
[1739781285723,0.74318,2691.0,2690.8,3.77]
[1739781285922,0.74316,2691.1,2690.8,7.03495996]
[1739781286118,0.5705,2691.2,2690.9,0.5919]
[1739781286426,0.74316,2691.1,2690.9,1.3351]
[1739781286728,0.5705,2691.2,2691.0,0.74316]
[1739781286930,0.5705,2691.2,2691.1,3.2078]
[1739781287231,1.31362,2691.2,2691.1,3.2078]
[1739781289631,0.5587,2691.4,2691.1,3.2078]
[1739781289833,0.74312,2691.2,2691.1,3.2078]
[1739781290728,0.74309,2691.3,2691.1,3.2078]
[1739781290929,0.5587,2691.4,2691.1,3.2078]
[1739781291122,0.74312,2691.2,2691.1,3.2078]
[1739781291832,0.7431,2691.3,2691.1,3.95095]
[1739781292034,0.74312,2691.2,2691.1,3.2078]
[1739781293341,0.5587,2691.4,2691.1,3.2078]
[1739781293538,0.74312,2691.2,2691.1,3.2078]
[1739781295034,41.3587,2691.4,2691.1,3.2078]
[1739781295540,0.74312,2691.2,2691.1,3.2078]
[1739781295734,41.3587,2691.4,2691.1,3.2078]
[1739781296038,0.74311,2691.3,2691.1,3.95093]
[1739781296235,0.5587,2691.4,2691.1,3.2078]
[1739781296432,0.74312,2691.2,2691.1,3.95095]
[1739781296634,0.5587,2691.4,2691.1,3.95095]
[1739781296942,0.74312,2691.2,2691.1,3.2078]
[1739781297432,0.5587,2691.4,2691.1,3.2078]
[1739781297634,0.74312,2691.2,2691.1,3.2078]
[1739781298134,40.8,2691.6,2691.4,0.74307]
[1739781298335,1.7278,2691.9,2691.5,6.47275996]
[1739781298538,0.74301,2691.6,2691.5,6.47275996]
[1739781298841,0.74301,2691.6,2691.5,7.04875996]
[1739781299439,41.54296,2691.8,2691.5,7.04875996]
[1739781299638,0.74299,2691.7,2691.5,7.79178996]
[1739781300038,41.54298,2691.8,2691.6,0.74301]
[1739781300241,1.7278,2691.9,2691.6,0.74301]
[1739781300242,0.5838,2691.9,2691.6,0.74301]
[1739781300444,1.32673,2691.9,2691.8,6.47275996]
[1739781301735,1.1656,2692.2,2691.8,6.47275996]
[1739781301931,1.7279,2692.2,2691.8,6.47275996]
[1739781302237,1.1557,2692.2,2691.8,7.21569996]
[1739781302543,1.89856,2692.2,2691.9,9.8749865]
[1739781302744,3.2078,2692.7,2692.1,6.47275996]
[1739781303044,0.74276,2692.6,2692.4,3.26495996]
[1739781303241,3.2078,2692.7,2692.5,0.5697]
[1739781303539,0.5623,2692.8,2692.5,0.5697]
[1739781303744,0.5623,2692.8,2692.7,6.47275996]
[1739781303946,0.74258,2693.2,2692.7,7.21545996]
[1739781304242,0.74258,2693.2,2692.7,15.03485634]
[1739781304442,44.0078,2693.3,2692.7,16.75873234]
[1739781305041,3.2078,2693.3,2692.7,16.75873234]
[1739781305342,0.74258,2693.2,2692.7,17.50143234]
[1739781305840,3.2078,2693.3,2692.7,16.75873234]
[1739781306044,3.2078,2693.3,2693.0,3.26495996]
[1739781306247,1.1502,2693.4,2693.1,3.2078]
[1739781306435,1.1502,2693.4,2693.1,12.1877864]
[1739781306639,3.2078,2693.9,2693.3,3.26495996]
[1739781306842,40.8,2693.7,2693.3,3.26495996]
[1739781307438,0.74252,2693.4,2693.3,3.26495996]
[1739781307634,1.1306,2693.8,2693.3,3.26495996]
[1739781307931,1.87302,2693.8,2693.3,3.26495996]
[1739781308136,40.8,2693.7,2693.3,3.26495996]
[1739781308343,3.2078,2694.6,2693.6,6.47275996]
[1739781308646,0.74235,2694.0,2693.9,3.26495996]
[1739781308840,1.1834,2694.5,2693.9,6.47275996]
[1739781309041,0.74231,2694.2,2693.9,6.47275996]
[1739781309945,1.1834,2694.5,2693.9,6.47275996]
[1739781310248,0.74228,2694.3,2693.9,6.47275996]
[1739781310435,0.74231,2694.2,2693.9,6.47275996]
[1739781310747,1.1834,2694.5,2693.9,6.47275996]
[1739781310947,0.74227,2694.3,2694.0,7.6192704]
[1739781311148,1.1834,2694.5,2694.0,7.6192704]
[1739781311353,3.2078,2695.4,2694.4,3.2078]
[1739781311547,0.5667,2695.0,2694.7,3.2078]
[1739781311847,0.74213,2694.8,2694.7,3.2078]
[1739781312846,0.5733,2694.9,2694.7,3.2078]
[1739781313144,41.3667,2695.0,2694.7,3.2078]
[1739781313342,0.74206,2695.1,2694.7,3.2078]
[1739781313545,0.74209,2695.0,2694.7,3.2078]
[1739781313847,0.74213,2694.8,2694.7,3.2078]
[1739781315041,0.74216,2694.7,2694.6,0.005576]
[1739781315749,0.74237,2694.0,2693.8,5.6668]
[1739781315949,3.2078,2694.4,2693.6,3.26495996]
[1739781316161,40.8,2693.9,2693.6,7.79010085]
[1739781316352,40.8,2693.9,2693.3,3.26495996]
[1739781316744,0.74244,2693.7,2693.4,7.70320397]
[1739781317053,41.547976,2693.9,2693.4,7.70320397]
[1739781317252,0.005576,2693.9,2693.4,7.70320397]
[1739781317552,0.005576,2693.9,2693.6,3.26495996]
[1739781318148,0.005576,2693.9,2693.3,6.27213596]
[1739781318341,0.74248,2693.6,2693.3,3.81213596]
[1739781318541,3.019776,2693.9,2693.4,7.60802028]
[1739781318747,0.74249,2693.5,2693.4,7.60802028]
[1739781319357,0.74248,2693.6,2693.4,7.60802028]
[1739781319653,3.2078,2693.7,2693.4,7.60802028]
[1739781319951,0.74249,2693.5,2693.4,7.60802028]
[1739781320657,0.74252,2693.4,2693.3,0.005576]
[1739781321257,3.95032,2693.4,2693.3,0.005576]
[1739781322356,4.50772,2693.4,2693.3,0.005576]
[1739781323754,6.97172,2693.4,2693.3,0.005576]
[1739781324149,3.95032,2693.4,2693.3,0.005576]
[1739781325459,3.94423579,2693.4,2693.3,0.005576]
[1739781335164,3.94423579,2693.4,2693.3,0.576976]
[1739781337863,3.94423579,2693.4,2693.3,0.005576]
[1739781338260,0.74265,2692.9,2692.8,0.5917]
[1739781338460,3.95045,2692.9,2692.8,0.5917]
[1739781341264,0.74271,2692.7,2692.6,0.005576]
[1739781343065,2.484,2692.7,2691.7,5.6918]
[1739781343265,0.74285,2692.2,2692.1,0.5612]
[1739781344264,0.005576,2692.4,2692.1,3.82615996]
[1739781344455,0.748376,2692.4,2692.2,1.1302]
[1739781344660,0.74282,2692.3,2692.2,1.1302]
[1739781345060,0.74282,2692.3,2692.2,0.5936]
[1739781345961,0.74285,2692.2,2692.1,0.5612]
[1739781348473,0.75758684,2692.2,2692.1,0.5612]
[1739781352775,0.7429,2692.0,2691.9,0.005576]
[1739781352975,0.7429,2692.0,2691.9,0.575476]
[1739781353176,0.7429,2692.0,2691.9,8.45432154]
[1739781353687,0.75763684,2692.0,2691.9,8.45432154]
[1739781356574,0.75763684,2692.0,2691.9,0.005576]
[1739781356982,1.31493684,2692.0,2691.9,0.005576]
[1739781359580,1.31493684,2692.0,2691.5,1.1401]
[1739781359581,0.74312,2691.2,2691.1,3.2078]
[1739781359782,0.74312,2691.2,2691.1,3.7771]
[1739781360689,0.01473684,2691.2,2691.1,0.5693]
[1739781361484,0.01473684,2691.2,2691.1,1.31245]
[1739781361688,0.01473684,2691.2,2691.1,9.34042266]
[1739781361983,0.01473684,2691.2,2691.1,15.01722266]
[1739781368182,0.5801,2692.1,2691.3,1.85773]
[1739781368486,0.584,2692.2,2691.7,3.26495996]
[1739781368696,0.584,2692.2,2692.0,3.26495996]
[1739781368893,0.584,2692.2,2692.1,0.5446]
[1739781369079,3.956186,2692.4,2692.1,0.5446]
[1739781369286,3.956186,2692.4,2692.1,1.28747]
[1739781369486,3.213376,2692.4,2692.1,1.28746]
[1739781369689,3.213376,2692.4,2692.2,7.62540235]
[1739781369893,0.74282,2692.3,2692.2,7.62540235]
[1739781370898,0.74293,2691.9,2691.8,3.7895]
[1739781371387,0.74293,2691.9,2691.8,8.57814988]
[1739781371984,0.5514,2692.2,2691.8,8.57814988]
[1739781372187,0.5514,2692.2,2692.0,0.74288]
[1739781372399,0.5514,2692.2,2692.1,0.74287]
[1739781372692,3.213376,2692.4,2692.1,0.74286]
[1739781372892,0.74283,2692.3,2692.2,0.5509]
[1739781373996,3.213376,2692.4,2691.8,0.5817]
[1739781374190,0.7429,2692.0,2691.8,1.1326]
[1739781374493,0.7429,2692.0,2691.9,7.60080702]
[1739781374883,0.5708,2692.2,2691.8,0.5509]
[1739781375090,0.74298,2691.8,2691.5,1.32013]
[1739781375285,0.74298,2691.8,2691.6,0.5509]
[1739781375592,0.74298,2691.8,2691.7,7.97070503]
[1739781375982,0.74298,2691.7,2691.6,7.76038421]
[1739781376182,3.2078,2691.8,2691.1,6.47275996]
[1739781376392,0.74312,2691.2,2691.1,3.2078]
[1739781377289,3.26495996,2691.7,2691.1,3.2078]
[1739781377799,0.74312,2691.2,2691.1,3.2078]
[1739781378094,0.74312,2691.2,2690.9,0.005576]
[1739781378095,0.74317,2691.1,2690.9,0.005576]
[1739781378595,0.74314,2691.2,2690.9,0.005576]
[1739781378798,0.5487,2691.4,2690.9,0.005576]
[1739781378992,0.74317,2691.1,2690.9,0.005576]
[1739781379295,0.5487,2691.4,2690.9,0.005576]
[1739781379497,0.74309,2691.3,2690.9,0.748766]
[1739781379889,0.74315,2691.1,2690.9,0.005576]
[1739781380195,0.74318,2691.0,2690.9,0.005576]
[1739781381286,0.5487,2691.4,2690.9,0.005576]
[1739781381686,0.74318,2691.0,2690.9,0.005576]
[1739781384891,0.74316,2691.1,2690.9,0.005576]
[1739781385095,3.0137,2691.4,2690.9,0.748766]
[1739781385297,0.74314,2691.2,2690.9,0.748766]
[1739781385586,3.0137,2691.4,2690.9,0.748766]
[1739781385789,0.74311,2691.3,2691.0,0.74317]
[1739781385990,0.74307,2691.4,2691.1,0.74313]
[1739781386190,0.74307,2691.4,2691.2,0.5377]
[1739781386389,3.2078,2691.5,2691.2,0.5377]
[1739781386691,3.2078,2691.5,2691.2,8.94178089]
[1739781386897,3.2078,2691.5,2691.4,0.74307]
[1739781387692,3.7959,2692.0,2691.7,0.74297]
[1739781387893,4.5388,2692.0,2691.7,0.74296]
[1739781388293,0.5881,2692.0,2691.6,3.26495996]
[1739781388494,0.74294,2691.9,2691.6,3.26495996]
[1739781388796,5.6698,2692.2,2691.9,0.74293]
[1739781388995,5.6698,2692.2,2691.7,7.93377448]
[1739781388996,6.41266,2692.2,2691.8,0.74294]
[1739781389298,0.74293,2691.9,2691.8,0.5894]
[1739781389502,0.74296,2691.8,2691.7,7.93377448]
[1739781390999,0.74304,2691.5,2691.4,0.5894]
[1739781392098,0.5619,2691.9,2691.3,2.462]
[1739781392099,0.74307,2691.4,2691.3,2.462]
[1739781392396,3.2078,2691.6,2690.9,1.325776]
[1739781392604,0.74313,2691.2,2690.9,1.325776]
[1739781392795,0.74313,2691.2,2691.0,7.83806089]
[1739781393204,0.5619,2691.3,2691.0,7.83806089]
[1739781393409,0.5619,2691.3,2690.9,0.582576]
[1739781393599,0.74318,2691.0,2690.9,0.582576]
[1739781393797,0.74318,2691.0,2690.9,0.005576]
[1739781397809,0.74316,2691.1,2690.9,0.005576]
[1739781397999,0.5393,2691.2,2690.9,0.005576]
[1739781398194,0.74316,2691.1,2690.9,0.005576]
[1739781398403,0.5393,2691.2,2690.9,0.005576]
[1739781398601,3.20609,2691.4,2690.9,3.27053596]
[1739781398798,3.2078,2691.6,2691.2,3.26495996]
[1739781399005,3.2078,2691.6,2691.4,0.74306]
[1739781399505,3.2078,2691.6,2691.3,0.5399]
[1739781399693,3.2078,2691.6,2691.3,1.28298]
[1739781399898,0.74307,2691.4,2691.3,0.5399]
[1739781401800,0.74313,2691.2,2691.0,0.5443]
[1739781402005,0.74313,2691.2,2691.0,1.28748]
[1739781402205,0.74313,2691.2,2691.1,7.79024747]
[1739781402408,3.2078,2691.6,2691.1,7.79024747]
[1739781402606,0.74304,2691.5,2691.2,0.74311]
[1739781403008,3.2078,2691.6,2691.1,7.79024747]
[1739781403508,0.74309,2691.4,2691.1,8.53338747]
[1739781403807,0.74311,2691.3,2691.1,8.53338747]
[1739781404007,3.2078,2691.6,2691.1,7.79024747]
[1739781404209,0.74312,2691.2,2691.1,7.79024747]
[1739781405811,0.74318,2691.0,2690.9,0.005576]
[1739781406219,3.95098,2691.0,2690.9,0.005576]
[1739781406907,0.74318,2691.0,2690.9,0.005576]
[1739781407106,0.74316,2691.1,2690.9,0.005576]
[1739781407411,0.5771,2691.2,2690.9,0.005576]
[1739781407412,0.74318,2691.0,2690.9,0.005576]
[1739781411004,0.5771,2691.2,2690.9,0.005576]
[1739781411204,0.5771,2691.2,2691.0,0.74317]
[1739781411409,1.32024,2691.2,2691.0,0.74318]
[1739781411618,0.5771,2691.2,2690.9,0.005576]
[1739781411812,0.74318,2691.0,2690.9,0.748766]
[1739781412013,0.74317,2691.1,2690.9,0.005576]
[1739781412412,0.5771,2691.2,2691.0,0.74317]
[1739781412718,1.32952,2691.3,2691.0,0.74317]
[1739781412911,1.32952,2691.3,2691.0,1.89177]
[1739781413516,0.5864,2691.3,2691.1,0.74314]
[1739781413917,0.5495,2691.5,2691.0,1.1486]
[1739781414214,0.74315,2691.1,2691.0,1.1486]
[1739781414417,0.74313,2691.2,2691.0,0.5646]
[1739781415211,0.5495,2691.5,2691.3,0.74309]
[1739781415407,0.5495,2691.5,2691.0,0.5646]
[1739781415408,0.5495,2691.5,2691.4,0.74307]
[1739781415612,3.2078,2691.6,2691.2,3.26495996]
[1739781415805,3.2078,2691.6,2691.5,0.74304]
[1739781416715,3.2078,2691.6,2691.3,7.95978735]
[1739781416915,0.74307,2691.4,2691.3,7.95978735]
[1739781417708,0.74306,2691.5,2691.3,7.95978735]
[1739781417906,3.2078,2691.6,2691.3,7.95978735]
[1739781418410,0.74305,2691.5,2691.3,8.70286735]